bitfinex/quotes_ETHUSD_20250608
["timestamp","ask_amount","ask_price","bid_price","bid_amount"]
[1749373913994,0.55,2513.0,2512.9,10.39241384]
[1749373915379,16.55,2513.1,2513.0,3.97924071]
[1749373915678,16.55,2513.1,2513.0,3.9793076]
[1749373916179,16.55,2513.1,2512.9,6.413]
[1749373916362,16.55,2513.1,2513.0,3.9793076]
[1749373916562,16.55,2513.1,2512.9,3.97939738]
[1749373916762,6.9328893,2513.1,2512.9,10.39239738]
[1749373916971,6.9328893,2513.1,2512.8,3.97957131]
[1749373917172,16.0,2513.0,2512.9,6.413]
[1749373917677,16.0,2513.0,2512.9,10.39246595]
[1749373917851,19.00688893,2513.0,2512.7,3.9796695]
[1749373918037,19.80648893,2513.0,2512.8,10.39254811]
[1749373918687,19.80648893,2513.0,2512.8,3.97954811]
[1749373919751,0.55,2512.8,2512.6,0.2267519]
[1749373920081,16.55,2512.8,2512.7,3.9797827]
[1749373920877,16.55,2512.8,2512.6,10.61960594]
[1749373921067,16.55,2512.8,2512.7,3.9797827]
[1749373922052,16.55,2512.8,2512.6,10.61960886]
[1749373922381,16.93871886,2512.8,2512.6,0.2267519]
[1749373922567,16.93871886,2512.8,2512.6,4.20668529]
[1749373925592,18.186,2512.7,2512.6,4.20668529]
[1749373925891,2.186,2512.7,2512.6,4.20668529]
[1749373926427,1.3172,2512.3,2512.0,1.79021283]
[1749373926700,0.55,2512.1,2512.0,5.77109805]
[1749373928993,22.977,2512.6,2512.5,3.98003654]
[1749373929166,7.14985856,2512.6,2512.5,3.98003654]
[1749373929367,2.187,2512.6,2512.5,3.98003654]
[1749373930503,21.02401692,2512.8,2512.7,3.9797827]
[1749373930660,23.6095589,2512.8,2512.7,3.9797827]
[1749373931064,23.6095589,2512.8,2512.5,3.9800761]
[1749373931065,1.3779,2512.7,2512.6,3.97994109]
[1749373931265,18.187,2512.7,2512.6,3.97994109]
[1749373933966,0.55,2512.5,2512.2,3.98045232]
[1749373934167,16.55,2512.2,2512.1,3.98068385]
[1749373934407,21.45340845,2512.2,2512.1,3.98073325]
[1749373935591,16.55,2512.3,2512.2,3.98057479]
[1749373942832,18.202,2512.3,2512.2,3.98057479]
[1749373943224,16.55,2512.3,2512.2,3.98057479]
[1749373943519,0.55,2512.3,2512.2,3.98057479]
[1749373943698,0.55,2512.3,2512.2,10.42657479]
[1749373943892,1.652,2512.5,2512.4,3.98025792]
[1749373944100,2.202,2512.5,2512.4,3.98025792]
[1749373947205,1.652,2512.6,2512.4,6.444]
[1749373947390,1.652,2512.6,2512.5,3.9800995]
[1749373949230,2.202,2512.7,2512.6,3.97989833]
[1749373950697,2.202,2512.7,2512.5,3.98004396]
[1749373950902,20.07550845,2512.5,2512.4,3.98014121]
[1749373951104,20.07550845,2512.5,2512.4,10.42114121]
[1749373951304,20.62550845,2512.5,2512.4,10.42114121]
[1749373954317,20.62550845,2512.5,2512.4,10.41914121]
[1749373955313,16.55,2512.5,2512.4,10.41914121]
[1749373955997,0.55,2512.5,2512.4,10.41914121]
[1749373957012,16.55,2512.6,2512.5,3.9800995]
[1749373968848,0.55,2512.5,2512.4,3.98013375]
[1749373969012,4.62550845,2512.5,2512.4,10.41113375]
[1749373971061,0.55,2512.5,2512.4,10.41113375]
[1749373975267,18.196,2512.7,2512.6,3.97994109]
[1749373975452,19.14629865,2512.7,2512.6,3.97994109]
[1749373975658,18.196,2512.7,2512.6,3.97994109]
[1749373976027,19.14628198,2512.7,2512.6,3.97994109]
[1749373976231,19.14628057,2512.7,2512.6,3.97994109]
[1749373976632,18.196,2512.7,2512.6,3.97994109]
[1749373976933,19.14624511,2512.7,2512.6,3.97994109]
[1749373977133,19.14624511,2512.7,2512.6,10.40794109]
[1749373977443,17.50024511,2512.7,2512.6,10.40794109]
[1749373977648,16.55,2512.7,2512.6,10.40794109]
[1749373980561,17.50016618,2512.7,2512.6,10.40894109]
[1749373980736,19.43953776,2512.7,2512.5,3.9800344]
[1749373981059,20.62550845,2512.6,2512.5,3.9800344]
[1749373981850,20.62550845,2512.6,2512.5,10.4120344]
[1749373984683,16.55,2512.6,2512.5,10.4120344]
[1749373986573,16.0,2512.6,2512.5,10.4120344]
[1749373987193,16.0,2512.6,2512.5,3.9800344]
[1749373987365,16.0,2512.6,2512.5,10.4110344]
[1749373989567,16.0,2512.6,2512.5,3.9800344]
[1749373989771,16.0,2512.6,2512.5,10.4110344]
[1749373994379,2.04613691,2512.8,2512.7,3.9797827]
[1749373994380,18.04613691,2512.8,2512.7,3.9797827]
[1749373994610,18.04613691,2512.8,2512.7,10.4097827]
[1749373998032,2.04613691,2512.8,2512.7,10.4097827]
[1749373999517,16.0,2512.9,2512.8,3.97962432]
[1749374004504,16.0,2512.9,2512.8,10.40462432]
[1749374006027,16.55,2512.9,2512.8,10.40462432]
[1749374006528,1.3529,2512.8,2512.7,3.97975527]
[1749374006733,5.42840845,2512.8,2512.7,10.40375527]
[1749374007734,5.42840845,2512.8,2512.7,3.97975527]
[1749374008051,5.42840845,2512.8,2512.7,10.40475527]
[1749374009943,23.63419757,2512.8,2512.7,6.424]
[1749374010453,23.63419757,2512.8,2512.7,10.4037827]
[1749374012145,24.02514963,2512.8,2512.7,10.4037827]
[1749374014155,24.02514963,2512.8,2512.1,3.98059583]
[1749374014156,0.55,2512.6,2512.1,3.98059583]
[1749374014359,0.55,2512.6,2512.5,3.9799588]
[1749374014531,4.62550845,2512.6,2512.5,10.4019588]
[1749374016926,4.62550845,2512.6,2512.5,3.9799588]
[1749374017143,20.62550845,2512.6,2512.4,3.98016159]
[1749374017343,22.8074445,2512.6,2512.5,10.4050995]
[1749374022659,0.55,2512.4,2512.3,3.98029991]
[1749374022845,20.62550845,2512.4,2512.1,3.98066554]
[1749374023050,16.55,2512.3,2512.2,10.40357479]
[1749374028388,16.55,2512.3,2512.2,3.98057479]
[1749374028590,16.55,2512.3,2512.2,10.40257479]
[1749374029576,1.644,2512.4,2512.3,3.98041635]
[1749374029862,0.39095206,2512.8,2512.7,3.9797827]
[1749374030082,2.191,2512.8,2512.7,3.9797827]
[1749374032600,0.55,2512.7,2512.6,3.97985392]
[1749374033699,16.0,2512.6,2512.5,3.98002453]
[1749374033901,16.0,2512.6,2512.4,10.40220945]
[1749374034577,16.55,2512.6,2512.5,3.9800995]
[1749374036124,16.55,2512.6,2512.5,10.4010995]
[1749374037793,16.55,2512.6,2512.5,3.9800995]
[1749374040254,16.55,2512.6,2512.5,10.4020995]
[1749374041105,0.39839511,2512.8,2512.7,3.9797827]
[1749374041308,7.8,2513.0,2512.9,3.97946595]
[1749374041505,9.441,2513.0,2512.9,3.97946595]
[1749374041763,25.441,2513.0,2512.9,3.97946595]
[1749374041937,25.991,2513.0,2512.9,3.97946595]
[1749374042114,25.991,2513.0,2512.8,3.9796223]
[1749374042115,16.55,2512.9,2512.8,3.97953688]
[1749374042517,16.0,2512.9,2512.8,3.97953688]
[1749374042745,17.641,2512.9,2512.8,3.97953688]
[1749374044644,18.191,2512.9,2512.8,3.97953688]
[1749374045028,2.191,2512.9,2512.8,3.97953688]
[1749374048458,2.191,2512.9,2512.8,3.97962432]
[1749374048948,2.191,2512.9,2512.7,6.42]
[1749374048949,2.9585,2512.9,2512.7,3.97973648]
[1749374049158,4.62550845,2512.8,2512.7,3.97973648]
[1749374049459,4.62550845,2512.8,2512.7,10.39773648]
[1749374051090,4.62550845,2512.8,2512.7,6.418]
[1749374051251,4.62550845,2512.8,2512.7,10.3977827]
[1749374051868,5.03174003,2512.8,2512.7,10.3977827]
[1749374052792,21.03174003,2512.8,2512.6,10.39784181]
[1749374052964,16.55,2512.7,2512.6,10.39784181]
[1749374054070,0.55,2512.6,2512.5,10.3980995]
[1749374054782,0.55,2512.7,2512.6,3.97994109]
[1749374055313,0.55,2512.7,2512.2,6.417]
[1749374055472,4.07550845,2512.3,2512.2,3.98057479]
[1749374055873,20.62550845,2512.5,2512.4,3.98018522]
[1749374056088,22.7631193,2512.5,2512.4,3.98018522]
[1749374057285,16.55,2512.5,2512.4,3.98018522]
[1749374057476,0.55,2512.5,2512.4,3.98018522]
[1749374057701,2.59177854,2512.8,2512.7,3.9797827]
[1749374057881,2.191,2512.8,2512.7,3.9797827]
[1749374058077,7.8,2513.0,2512.8,3.97962432]
[1749374058279,7.8,2513.1,2512.9,3.97934326]
[1749374058587,7.8,2513.1,2512.9,6.421]
[1749374058766,16.55,2513.0,2512.9,10.40046595]
[1749374058962,16.0,2513.0,2512.9,10.40046595]
[1749374059167,16.55,2513.0,2512.9,10.40046595]
[1749374060606,16.0,2513.0,2512.9,10.40046595]
[1749374062980,7.8,2513.1,2513.0,3.9793076]
[1749374063175,23.8,2513.1,2513.0,3.9793076]
[1749374065511,23.8,2513.1,2513.0,10.3983076]
[1749374065722,0.55,2513.0,2512.9,3.97932324]
[1749374065939,0.55,2513.0,2512.9,10.39732324]
[1749374069053,25.44,2513.1,2513.0,3.9793076]
[1749374069349,25.99,2513.1,2513.0,3.9793076]
[1749374069525,23.8,2513.1,2513.0,3.9793076]
[1749374074051,0.7755,2513.6,2513.3,3.97883261]
[1749374074223,16.55,2513.4,2513.3,3.97883261]
[1749374074430,0.55,2513.4,2513.3,3.97883261]
[1749374075038,2.19,2513.4,2513.3,3.97883261]
[1749374075647,0.55,2513.4,2513.3,10.39583261]
[1749374079049,2.19,2513.6,2513.5,3.97851601]
[1749374079369,2.19,2513.6,2513.5,10.39551601]
[1749374081864,18.19,2513.7,2513.6,3.97835773]
[1749374085870,0.55,2513.6,2513.5,10.3944779]
[1749374086183,4.62550845,2513.6,2513.5,10.3944779]
[1749374091189,4.62550845,2513.6,2513.5,10.3974779]
[1749374092273,4.62550845,2513.6,2513.5,10.3964779]
[1749374096911,4.07550845,2513.6,2513.5,10.3964779]
[1749374097112,2.19,2513.7,2513.6,3.97835773]
[1749374099503,0.55,2513.7,2513.6,3.97835773]
[1749374100319,22.26550845,2513.8,2513.7,3.97819946]
[1749374100519,0.55,2513.7,2513.6,3.97826843]
[1749374101518,1.50015155,2513.7,2513.6,3.97826843]
[1749374102559,0.55,2513.7,2513.6,3.97826843]
[1749374102715,1.50069328,2513.7,2513.6,3.97826843]
[1749374104522,19.14069328,2513.7,2513.6,3.97826843]
[1749374104819,18.59069328,2513.7,2513.6,3.97826843]
[1749374117940,16.95069328,2513.7,2513.6,3.97826843]
[1749374121201,16.95069328,2513.7,2513.6,10.39226843]
[1749374125133,16.95069328,2513.7,2513.6,3.97826843]
[1749374125274,22.88527106,2513.7,2513.6,10.39226843]
[1749374125966,21.02620173,2513.7,2513.6,10.39226843]
[1749374126167,16.95069328,2513.7,2513.6,10.39226843]
[1749374126701,16.95161904,2513.7,2513.6,10.39226843]
[1749374127184,0.95161904,2513.7,2513.6,10.39226843]
[1749374127386,8.35,2514.0,2513.9,3.97788297]
[1749374127569,25.30143869,2514.0,2513.9,3.97788297]
[1749374128367,24.75143869,2514.0,2513.9,3.97788297]
[1749374128980,8.75143869,2514.0,2513.9,3.97788297]
[1749374133399,8.75049029,2514.0,2513.9,3.97788297]
[1749374133761,7.8,2514.0,2513.9,3.97788297]
[1749374134190,8.75053494,2514.0,2513.9,3.97788297]
[1749374134604,7.8,2514.0,2513.9,3.97788297]
[1749374136100,7.8,2514.0,2513.9,10.39088297]
[1749374137097,0.40102463,2514.1,2514.0,3.97772474]
[1749374137298,20.62550845,2514.2,2514.1,3.97756652]
[1749374137500,21.57594633,2514.2,2514.1,10.39056652]
[1749374138809,21.97777626,2514.2,2514.1,10.39056652]
[1749374139413,21.97777626,2514.2,2514.1,3.97756652]
[1749374140421,0.55,2513.9,2512.9,3.97932217]
[1749374140622,4.07550845,2513.7,2513.6,3.97827337]
[1749374140868,4.87890845,2513.7,2513.6,10.39127337]
[1749374142123,0.55,2513.6,2513.5,3.97848846]
[1749374142356,17.49989814,2513.6,2513.5,10.39148846]
[1749374143469,16.55,2513.6,2513.5,10.39148846]
[1749374144979,0.55,2513.6,2513.5,10.39148846]
[1749374149956,0.55,2513.6,2513.5,10.39248846]
[1749374150577,0.55,2513.6,2513.5,3.97851601]
[1749374154302,0.55,2513.6,2513.3,3.97883261]
[1749374154303,0.55,2513.4,2513.3,3.97883261]
[1749374155062,1.49895353,2513.4,2513.2,3.97883335]
[1749374155293,0.55,2513.4,2513.2,3.97883335]
[1749374155519,0.55,2513.4,2513.3,3.97883261]
[1749374165417,0.55,2513.4,2513.2,3.97891928]
[1749374166792,0.55,2513.4,2513.3,3.97883261]
[1749374167510,2.188,2513.4,2513.3,3.97883261]
[1749374168072,16.0,2513.6,2513.5,3.97851601]
[1749374168410,2.188,2513.6,2513.5,3.97851601]
[1749374168610,18.188,2513.6,2513.5,3.97851601]
[1749374170608,19.13796966,2513.6,2513.5,3.97851601]
[1749374174228,16.55,2513.5,2513.4,3.9786251]
[1749374176818,0.7837,2513.2,2512.0,1.79021283]
[1749374176981,20.62550845,2513.1,2513.0,3.9793076]
[1749374177608,16.55,2513.1,2513.0,3.9793076]
[1749374180534,20.62550845,2513.1,2513.0,3.9793076]
[1749374181393,18.188,2513.1,2513.0,3.9793076]
[1749374192017,22.26350845,2513.1,2513.0,3.9793076]
[1749374193754,23.07620845,2513.1,2513.0,3.9793076]
[1749374195953,18.188,2513.1,2513.0,3.9793076]
[1749374203756,23.21378414,2513.1,2513.0,3.9793076]
[1749374203960,16.0,2513.0,2512.8,6.415]
[1749374204160,16.0,2513.0,2512.9,3.97946595]
[1749374206772,16.95126567,2513.0,2512.9,3.97946595]
[1749374208185,18.58926567,2513.0,2512.9,3.97946595]
[1749374208640,20.28504451,2513.0,2512.1,3.98073325]
[1749374208979,21.02677412,2512.9,2512.8,3.97962432]
[1749374210265,21.42199265,2512.9,2512.8,3.97962432]
[1749374210643,17.3464842,2512.9,2512.8,3.97962432]
[1749374212477,16.39521853,2512.9,2512.8,3.97962432]
[1749374212887,17.34596819,2512.9,2512.8,3.97962432]
[1749374213477,16.39521853,2512.9,2512.8,3.97962432]
[1749374213884,17.34595844,2512.9,2512.8,3.97962432]
[1749374214075,16.95073991,2512.9,2512.8,3.97962432]
[1749374214269,16.0,2512.9,2512.8,3.97962432]
[1749374216364,16.0,2512.9,2512.8,10.39462432]
[1749374219059,16.0,2512.9,2512.8,3.97962432]
[1749374219592,16.0,2512.9,2512.0,1.79021283]
[1749374219593,16.0,2512.8,2512.0,1.79021283]
[1749374219796,20.07550845,2512.7,2512.6,3.97984002]
[1749374223504,1.3066,2512.6,2512.0,1.79021283]
[1749374223676,4.07550845,2512.3,2512.2,3.98056404]
[1749374223879,5.71350845,2512.3,2512.2,3.98056404]
[1749374224085,5.71350845,2512.3,2512.0,5.77100879]
[1749374224086,0.7684,2512.2,2512.0,1.79021283]
[1749374224273,4.07550845,2512.1,2512.0,5.77100386]
[1749374225307,0.7684,2512.2,2512.1,3.98073325]
[1749374225506,16.7684,2512.2,2512.1,3.98073325]
[1749374225922,16.7684,2512.2,2512.0,1.79021283]
[1749374226134,20.62550845,2512.1,2512.0,1.79021283]
[1749374226416,27.04950845,2512.1,2512.0,1.79021283]
[1749374226620,27.99754441,2512.1,2512.0,1.79021283]
[1749374226813,32.75597766,2512.1,2512.0,1.79021283]
[1749374227032,36.86266951,2512.1,2512.0,1.79021283]
[1749374228182,44.66266951,2512.1,2512.0,1.35445792]
[1749374228391,0.55,2511.6,2511.2,4.8212232]
[1749374228584,4.62550845,2511.4,2511.2,0.83919488]
[1749374228788,5.40320845,2511.4,2511.2,4.82132021]
[1749374229328,5.40320845,2511.4,2511.2,0.83919488]
[1749374229473,16.55,2511.3,2511.2,0.83919488]
[1749374230112,22.977,2511.3,2511.2,0.83919488]
[1749374230280,23.36549332,2511.3,2511.2,0.83919488]
[1749374230472,31.98319332,2511.3,2511.2,0.83919488]
[1749374230674,36.05870177,2511.3,2511.2,0.83919488]
[1749374230885,40.16539362,2511.3,2511.2,0.83919488]
[1749374233123,48.22290342,2511.3,2511.2,0.83919488]
[1749374233323,33.73839362,2511.3,2511.2,0.83919488]
[1749374233605,37.73488517,2511.3,2511.2,0.83919488]
[1749374233784,41.81039362,2511.3,2511.2,0.83919488]
[1749374234203,9.55619332,2511.3,2511.2,0.83919488]
[1749374234534,8.18849332,2511.3,2511.2,4.8213548]
[1749374235105,25.82649332,2511.3,2511.2,4.8213548]
[1749374235510,7.8,2511.3,2511.2,4.8213548]
[1749374235837,1.638,2511.6,2511.4,3.98184279]
[1749374236010,7.8,2512.1,2511.5,3.98166735]
[1749374236212,1.638,2511.8,2511.6,3.98152572]
[1749374236514,1.638,2511.8,2511.7,3.9813672]
[1749374238425,16.0,2512.0,2511.9,3.9810502]
[1749374238596,17.638,2512.0,2511.9,3.9810502]
[1749374239231,17.638,2512.0,2511.8,3.98112357]
[1749374239449,17.638,2512.0,2511.9,3.9810502]
[1749374240809,0.55,2511.9,2511.3,0.6237]
[1749374241109,0.55,2511.7,2511.5,3.98163263]
[1749374241310,0.55,2511.7,2511.3,0.6237]
[1749374241311,0.55,2511.7,2511.6,3.98152572]
[1749374243124,1.638,2511.7,2511.6,3.98152572]
[1749374243326,1.638,2511.7,2511.6,11.05422572]
[1749374244069,0.39528714,2512.1,2512.0,3.98089171]
[1749374244214,17.199,2512.3,2512.2,3.98057479]
[1749374244418,35.78224385,2512.3,2512.2,3.98057479]
[1749374244641,35.23224385,2512.3,2512.2,3.98057479]
[1749374244846,35.78224385,2512.3,2512.2,3.98057479]
[1749374247134,17.199,2512.3,2512.2,3.98057479]
[1749374247341,17.199,2512.3,2512.2,10.44057479]
[1749374247849,17.199,2512.3,2512.2,3.98057479]
[1749374248053,34.5389,2512.3,2512.2,3.98057479]
[1749374248617,33.749,2512.3,2512.2,3.98057479]
[1749374248925,16.0,2512.2,2512.0,3.98081259]
[1749374249126,16.0,2512.2,2512.1,3.98073325]
[1749374249127,24.7322003,2512.2,2512.1,3.98073325]
[1749374250257,20.65669185,2512.2,2512.1,3.98073325]
[1749374250824,20.65669185,2512.2,2511.9,3.98090723]
[1749374250825,0.55,2512.1,2511.9,3.98090723]
[1749374251016,0.55,2512.1,2512.0,3.98089171]
[1749374252540,0.55,2512.1,2511.7,3.98132388]
[1749374252749,16.7899,2512.0,2511.9,3.9810502]
[1749374253261,16.7899,2512.0,2511.7,10.44335201]
[1749374253262,0.55,2511.9,2511.6,3.981381]
[1749374253579,1.658,2511.8,2511.7,3.9813672]
[1749374253916,0.55,2511.7,2511.4,3.9817877]
[1749374254112,0.55,2511.7,2511.6,3.98152572]
[1749374254517,0.55,2511.7,2511.4,3.9818062]
[1749374254731,0.55,2511.7,2511.4,3.98179408]
[1749374255152,0.55,2511.7,2511.5,3.98156958]
[1749374255357,0.55,2511.7,2511.6,3.98152572]
[1749374256365,0.55,2511.8,2511.7,3.98134188]
[1749374256568,7.8,2511.9,2511.7,3.98134188]
[1749374256766,7.8,2511.9,2511.8,3.98120869]
[1749374256968,23.8,2511.9,2511.8,3.98120869]
[1749374258221,7.8,2511.9,2511.8,3.98120869]
[1749374258424,9.458,2511.9,2511.8,3.98120869]
[1749374260328,9.458,2511.9,2511.8,10.44820869]
[1749374262571,7.8,2511.9,2511.8,10.44820869]
[1749374262874,0.40386666,2512.3,2512.0,3.98089171]
[1749374263032,1.658,2512.2,2512.1,3.98070733]
[1749374263237,1.658,2512.3,2512.2,3.98057479]
[1749374263959,0.55,2512.4,2512.3,3.98041635]
[1749374264157,18.60189041,2512.4,2512.3,3.98041635]
[1749374266873,0.94389041,2512.4,2512.3,3.98041635]
[1749374267056,2.60089041,2512.4,2512.3,3.98041635]
[1749374272771,8.94403875,2512.4,2512.1,6.463]
[1749374272967,4.62550845,2512.2,2511.8,3.98112446]
[1749374273171,4.62550845,2512.2,2512.0,3.98078388]
[1749374273400,6.38021233,2512.2,2512.0,3.98078388]
[1749374274310,16.0,2512.1,2511.9,3.98098605]
[1749374274520,0.55,2512.0,2511.9,3.98098605]
[1749374280572,0.55,2512.0,2511.8,3.98112717]
[1749374280769,0.55,2512.0,2511.7,3.98131717]
[1749374280770,0.55,2511.8,2511.7,3.98136443]
[1749374281373,0.55,2511.8,2511.6,3.9814436]
[1749374281713,0.55,2511.8,2511.6,3.98148441]
[1749374281714,2.213,2511.8,2511.6,3.98148441]
[1749374281889,6.28850845,2511.8,2511.5,10.44364109]
[1749374282442,6.28850845,2511.8,2511.5,3.98164109]
[1749374282617,18.213,2511.8,2511.6,3.98148598]
[1749374282926,18.213,2511.8,2511.7,3.9813672]
[1749374284337,18.213,2511.8,2511.6,3.98147824]
[1749374284818,18.213,2511.8,2511.5,3.98161082]
[1749374285022,18.213,2511.8,2511.5,3.98168425]
[1749374285178,0.55,2511.6,2511.4,10.44075825]
[1749374285554,0.55,2511.6,2511.2,0.83919488]
[1749374285736,0.55,2511.6,2511.4,3.98174028]
[1749374285902,0.55,2511.4,2511.2,0.83919488]
[1749374286079,5.8524593,2511.3,2511.2,0.83919488]
[1749374286428,21.8524593,2511.3,2511.2,0.83919488]
[1749374289826,17.77695085,2511.3,2511.2,0.83919488]
[1749374290143,18.214,2511.3,2511.2,4.8213548]
[1749374291034,22.28950845,2511.3,2511.2,0.83919488]
[1749374293010,26.2715098,2511.3,2511.2,0.83919488]
[1749374293344,27.0664098,2511.3,2511.2,0.69338831]
[1749374293843,7.8,2511.3,2511.2,4.67554823]
[1749374294016,10.014,2511.3,2511.2,0.69338831]
[1749374294573,27.0154,2511.3,2511.2,0.69338831]
[1749374294876,27.8103,2511.3,2511.2,0.69338831]
[1749374295025,16.55,2511.2,2510.8,3.98278939]
[1749374295373,20.62550845,2511.0,2510.8,3.98278939]
[1749374295536,23.4680593,2511.0,2510.8,3.98278939]
[1749374295727,20.62550845,2511.0,2510.8,3.98278939]
[1749374296071,20.62550845,2511.0,2510.9,3.9826357]
[1749374296248,16.55,2511.0,2510.9,3.9826357]
[1749374297150,16.55,2511.0,2510.7,3.98295013]
[1749374297357,16.55,2511.0,2510.8,3.98274135]
[1749374298230,16.55,2511.0,2510.9,3.9826357]
[1749374298632,20.62550845,2511.0,2510.7,3.98288025]
[1749374298827,24.12443404,2511.0,2510.5,4.9832157]
[1749374299032,24.89013404,2511.0,2510.7,3.98286864]
[1749374299450,24.89013404,2511.0,2510.8,3.9827404]
[1749374299644,32.69013404,2511.0,2510.5,1.0]
[1749374299939,32.69013404,2511.0,2510.7,3.9828873]
[1749374300263,32.69013404,2511.0,2510.6,3.98308259]
[1749374300463,32.69013404,2511.0,2510.5,4.98321315]
[1749374300464,32.69013404,2511.0,2510.7,3.98295234]
[1749374300686,16.55,2510.8,2510.6,3.98303477]
[1749374300866,2.214,2510.7,2510.6,3.98303477]
[1749374302082,16.55,2510.6,2510.5,4.9831406]
[1749374302265,16.55,2510.6,2510.5,4.98327026]
[1749374305867,18.211,2510.6,2510.5,4.98327026]
[1749374306066,7.8,2510.7,2510.6,3.9831116]
[1749374306281,9.461,2510.7,2510.6,4.6068116]
[1749374307846,7.8,2510.7,2510.6,4.6068116]
[1749374308050,7.8,2510.7,2510.6,11.0648116]
[1749374310374,7.8,2510.7,2510.6,10.4411116]
[1749374311090,7.8,2510.7,2510.6,10.4401116]
[1749374311455,17.661,2510.9,2510.8,3.98279432]
[1749374313675,17.661,2510.9,2510.8,4.60649432]
[1749374313912,1.661,2510.9,2510.8,11.06549432]
[1749374314975,7.8,2511.2,2511.1,3.9823185]
[1749374315202,16.94650096,2511.8,2511.7,3.98136247]
[1749374315408,17.49650096,2511.8,2511.7,3.98136247]
[1749374316106,1.49650096,2511.8,2511.7,3.98136247]
[1749374316313,17.49650096,2511.8,2511.7,3.98136247]
[1749374316478,0.55,2511.7,2511.6,3.98143371]
[1749374317408,0.94652033,2511.7,2511.6,3.98143371]
[1749374319181,0.94652033,2511.7,2511.4,10.45478332]
[1749374319523,0.94652033,2511.7,2511.5,3.98164068]
[1749374319883,0.94652033,2511.7,2511.6,3.98152572]
[1749374320948,0.94652033,2511.7,2511.4,3.98176003]
[1749374321154,0.94652033,2511.7,2511.5,3.98167437]
[1749374322730,0.94652033,2511.7,2511.4,3.98176696]
[1749374323130,0.94652033,2511.7,2511.3,3.98193303]
[1749374323322,1.3132,2511.5,2511.4,3.98175076]
[1749374324657,1.3132,2511.5,2511.1,10.4522938]
[1749374324958,9.1132,2511.5,2511.3,3.98192062]
[1749374327269,9.1132,2511.5,2511.4,3.98184279]
[1749374327439,25.1132,2511.5,2511.4,3.98184279]
[1749374327622,24.35,2511.5,2511.4,3.98184279]
[1749374328036,9.461,2511.5,2511.4,3.98184279]
[1749374336292,7.8,2511.5,2511.4,3.98184279]
[1749374337381,7.8,2511.5,2511.4,11.07154279]
[1749374338476,17.751,2512.0,2511.9,3.9810502]
[1749374338715,0.55,2512.0,2511.9,3.9810502]
[1749374338899,1.666,2512.1,2512.0,3.98089171]
[1749374339106,18.216,2512.1,2512.0,3.98089171]
[1749374340180,16.0,2512.0,2511.9,3.98102867]
[1749374342524,1.666,2512.1,2512.0,3.98089171]
[1749374342701,1.666,2512.1,2512.0,4.60459171]
[1749374342908,1.666,2512.1,2512.0,11.07559171]
[1749374343081,7.8,2512.3,2512.2,3.98057479]
[1749374343280,7.8,2512.3,2512.2,10.45157479]
[1749374344811,16.0,2512.7,2512.6,3.97994109]
[1749374344812,1.666,2512.7,2512.6,3.97994109]
[1749374346908,16.0,2512.8,2512.7,3.9797827]
[1749374346909,17.666,2512.8,2512.7,3.9797827]
[1749374347705,17.666,2512.8,2512.6,3.97994109]
[1749374347904,17.666,2512.8,2512.7,3.9797827]
[1749374351339,18.07103859,2512.8,2512.5,10.44997769]
[1749374351639,0.55,2512.5,2512.3,3.98028877]
[1749374351817,2.216,2512.5,2512.4,3.98025792]
[1749374354350,0.55,2512.5,2512.4,3.98025792]
[1749374354505,16.40503859,2512.8,2512.7,3.9797827]
[1749374355547,16.0,2512.8,2512.7,3.9797827]
[1749374356251,25.466,2512.9,2512.8,3.97962432]
[1749374356450,25.466,2512.9,2512.8,10.45262432]
[1749374356654,25.86916802,2512.9,2512.8,10.45262432]
[1749374357851,28.54607123,2512.9,2512.7,3.9797038]
[1749374358152,28.54607123,2512.9,2512.8,10.45062432]
[1749374358651,25.86916802,2512.9,2512.8,10.45062432]
[1749374359722,24.20316802,2512.9,2512.8,10.45062432]
[1749374362269,23.8,2512.9,2512.8,10.45062432]
[1749374363261,23.8,2512.9,2512.8,6.471]
[1749374363668,23.8,2512.9,2512.8,10.45062432]
[1749374363872,23.8,2512.9,2512.7,3.97969031]
[1749374364059,23.8,2512.9,2512.8,6.468]
[1749374364264,23.8,2512.9,2512.8,10.44762432]
[1749374366886,7.8,2512.9,2512.8,11.07132432]
[1749374368288,0.66666667,2513.0,2512.9,3.97946595]
[1749374369249,0.66666667,2513.0,2512.9,4.60316595]
[1749374372478,0.66666667,2513.0,2512.9,11.07516595]
[1749374376681,0.66666667,2513.0,2512.9,4.60316595]
[1749374376859,0.66666667,2513.0,2512.9,11.07616595]
[1749374382768,0.66666667,2513.0,2512.9,4.60316595]
[1749374382967,0.66666667,2513.0,2512.9,10.44646595]
[1749374383369,4.07550845,2513.5,2513.3,3.97872661]
[1749374383569,4.62550845,2513.5,2513.4,3.9786743]
[1749374384606,4.62550845,2513.5,2513.3,10.44574298]
[1749374385879,16.0,2513.4,2513.2,3.9789696]
[1749374386078,4.84700845,2513.3,2513.2,3.9789696]
[1749374386577,4.84700845,2513.3,2513.0,3.97921679]
[1749374386783,4.84700845,2513.3,2369.8,0.25]
[1749374386784,4.07550845,2513.1,2512.9,3.97941252]
[1749374386998,4.62550845,2513.1,2513.0,10.4453076]
[1749374387417,0.7715,2512.9,2512.4,4.60391629]
[1749374387621,4.84700845,2512.9,2512.7,3.97973531]
[1749374387788,4.84700845,2512.9,2512.8,10.44662432]
[1749374392299,4.84700845,2512.9,2512.8,3.97962432]
[1749374392504,0.7715,2512.9,2512.7,3.9796944]
[1749374392699,0.7715,2512.9,2512.8,3.97962432]
[1749374394391,16.0,2513.0,2512.9,3.97946595]
[1749374394595,16.55,2513.0,2512.9,3.97946595]
[1749374395406,0.7602,2513.1,2513.0,3.9793076]
[1749374395730,2.218,2513.1,2513.0,10.4423076]
[1749374396085,1.668,2513.1,2513.0,10.4423076]
[1749374402933,19.0166,2513.3,2513.2,3.97899092]
[1749374403258,19.96456527,2513.3,2513.2,3.97899092]
[1749374403555,0.94796527,2513.3,2513.2,3.97899092]
[1749374403794,2.215,2513.4,2513.3,3.97883261]
[1749374404096,3.16304165,2513.4,2513.3,3.97883261]
[1749374405144,2.215,2513.4,2513.3,3.97883261]